[Event "POL-chT 2 Liga 2019"]
[Site "Poronin"]
[Date "2019.09.15"]
[Round "9.44"]
[White "Kulesza, Mateusz"]
[Black "Grela, Kacper"]
[Result "0-1"]
[ECO "B23"]
[WhiteElo "2246"]
[BlackElo "2346"]
[Annotator "NA"]
[PlyCount "70"]
[EventDate "2019.09.07"]
[EventType "team-tourn"]
[EventCountry "POL"]
[SourceTitle "playchess.com"]
[Source "ChessBase"]
[SourceQuality "1"]
[TimeControl "40/5400+30:1800+30"]

1. e4 {[%emt 0:00:00]} c5 {[%emt 0:00:00]} 2. Nc3 {[%emt 0:00:00]} Nc6 {[%emt 0:00:00]} 3. f4 {[%emt 0:00:19]} g6 {[%emt 0:00:00]} 4. Nf3 {[%emt 0:00:09]} Bg7 {[%emt 0:00:08]} 5. d3 {[%emt 0:00:20]} e6 {[%emt 0:00:22]} 6. g4 {[%emt 0:00:10]} Nd4 {[%emt 0:01:08]} 7. Bg2 {[%emt 0:01:52]} Ne7 {[%emt 0:04:57]} 8. O-O {[%emt 0:09:19]} f5 {[%emt 0:08:51]} 9. gxf5 {[%emt 0:05:55]} exf5 {[%emt 0:00:41]} 10. Nxd4 {[%emt 0:11:34]} cxd4 {[%emt 0:12:27]} 11. Ne2 {[%emt 0:20:40]} d6 {[%emt 0:08:42]} 12. c4 {[%emt 0:00:27]} O-O {[%emt 0:01:38]} 13. b4 {[%emt 0:00:55]} fxe4 {[%emt 0:01:56]} 14. Bxe4 {[%emt 0:00:10]} d5 {[%emt 0:02:46]} 15. cxd5 {[%emt 0:01:20]} Nxd5 {[%emt 0:02:49]} 16. Ng3 {[%emt 0:03:56]} Nc3 {[%emt 0:04:12]} 17. Qb3+ {[%emt 0:02:58]} Kh8 {[%emt 0:00:08]} 18. Bd2 {[%emt 0:06:02]} Qb6 {[%emt 0:05:18]} 19. Bxc3 {[%emt 0:18:01]} dxc3+ {[%emt 0:00:07]} 20. Kg2 {[%emt 0:00:54]} Be6 {[%emt 0:00:46]} 21. Qc2 {[%emt 0:00:02]} Qxb4 {[%emt 0:02:57]} 22. Rab1 {[%emt 0:00:02]} Qa5 {[%emt 0:03:18]} 23. Rxb7 {[%emt 0:00:02]} Rab8 {[%emt 0:01:55]} 24. Rfb1 {[%emt 0:01:08]} Rxb7 {[%emt 0:00:09]} 25. Rxb7 {[%emt 0:00:03]} Bd5 {[%emt 0:03:15]} 26. Rd7 {[%emt 0:02:22]} Bxe4+ {[%emt 0:01:18]} 27. dxe4 {[%emt 0:00:27]} Rxf4 {[%emt 0:00:43]} 28. a4 {[%emt 0:00:12]} Rf8 {[%emt 0:00:36]} 29. Qb3 {[%emt 0:00:29]} Qb6 {[%emt 0:02:59]} 30. Qc4 {[%emt 0:02:58]} h5 {[%emt 0:00:49]} 31. Kh3 {[%emt 0:00:49]} Qg1 {[%emt 0:05:26]} 32. Rxg7 {[%emt 0:03:07]} Kxg7 {[%emt 0:00:31]} 33. Qxc3+ {[%emt 0:00:11]} Kh7 {[%emt 0:01:14]} 34. Qc7+ {[%emt 0:00:24]} Kh6 {[%emt 0:00:43]} 35. Qd6 {[%emt 0:00:07]} Rf2 {[%emt 0:01:53]} 0-1

[Event "POL-chT 2 Liga 2019"]
[Site "Poronin"]
[Date "2019.09.15"]
[Round "9.47"]
[White "Krawiec, Grzegorz"]
[Black "Bartkowiak, Damian"]
[Result "1/2-1/2"]
[ECO "B10"]
[WhiteElo "1792"]
[BlackElo "2085"]
[Annotator "NA"]
[PlyCount "39"]
[EventDate "2019.09.07"]
[EventType "team-tourn"]
[EventCountry "POL"]
[SourceTitle "playchess.com"]
[Source "ChessBase"]
[SourceQuality "1"]
[TimeControl "40/5400+30:1800+30"]

1. e4 {[%emt 0:00:00]} c6 {[%emt 0:00:00]} 2. c4 {[%emt 0:00:00]} d5 {[%emt 0:00:13]} 3. cxd5 {[%emt 0:00:00]} cxd5 {[%emt 0:00:06]} 4. exd5 {[%emt 0:00:04]} Nf6 {[%emt 0:00:20]} 5. Bb5+ {[%emt 0:00:22]} Nbd7 {[%emt 0:01:12]} 6. Nc3 {[%emt 0:00:12]} g6 {[%emt 0:00:46]} 7. d4 {[%emt 0:00:27]} Bg7 {[%emt 0:00:12]} 8. d6 {[%emt 0:00:30]} O-O {[%emt 0:03:07]} 9. dxe7 {[%emt 0:00:36]} Qxe7+ {[%emt 0:05:33]} 10. Nge2 {[%emt 0:00:07]} Rd8 {[%emt 0:03:38]} 11. O-O {[%emt 0:00:39]} Nb6 {[%emt 0:01:45]} 12. Bg5 {[%emt 0:02:33]} h6 {[%emt 0:02:18]} 13. Bh4 {[%emt 0:03:43]} g5 {[%emt 0:07:42]} 14. Bg3 {[%emt 0:00:05]} Nh5 {[%emt 0:00:32]} 15. Qd2 {[%emt 0:02:41]} Be6 {[%emt 0:05:57]} 16. Rfd1 {[%emt 0:02:13]} Nxg3 {[%emt 0:08:13]} 17. hxg3 {[%emt 0:00:17]} a6 {[%emt 0:07:29]} 18. Bd3 {[%emt 0:00:49]} Rd7 {[%emt 0:00:23]} 19. Rac1 {[%emt 0:03:08]} Rad8 {[%emt 0:00:27]} 20. b3 {[%emt 0:00:48]} 1/2-1/2

[Event "POL-chT 2 Liga 2019"]
[Site "Poronin"]
[Date "2019.09.15"]
[Round "9.50"]
[White "Pyda, Zbigniew"]
[Black "Cajbel, Maciej"]
[Result "1/2-1/2"]
[ECO "A60"]
[WhiteElo "2322"]
[BlackElo "2199"]
[Annotator "NA"]
[PlyCount "83"]
[EventDate "2019.09.07"]
[EventType "team-tourn"]
[EventCountry "POL"]
[SourceTitle "playchess.com"]
[Source "ChessBase"]
[SourceQuality "1"]
[TimeControl "40/5400+30:1800+30"]

1. d4 {[%emt 0:00:00]} Nf6 {[%emt 0:00:32]} 2. c4 {[%emt 0:00:00]} c5 {[%emt 0:00:05]} 3. d5 {[%emt 0:00:04]} e6 {[%emt 0:00:03]} 4. Nc3 {[%emt 0:00:10]} exd5 {[%emt 0:00:03]} 5. cxd5 {[%emt 0:00:08]} d6 {[%emt 0:00:03]} 6. h3 {[%emt 0:01:10]} g6 {[%emt 0:00:12]} 7. Bg5 {[%emt 0:00:25]} Bg7 {[%emt 0:00:32]} 8. e3 {[%emt 0:01:18]} O-O {[%emt 0:02:46]} 9. Nf3 {[%emt 0:00:13]} Na6 {[%emt 0:05:35]} 10. Be2 {[%emt 0:01:22]} Nc7 {[%emt 0:02:15]} 11. a4 {[%emt 0:01:20]} b6 {[%emt 0:03:21]} 12. O-O {[%emt 0:01:06]} h6 {[%emt 0:04:56]} 13. Bh4 {[%emt 0:02:57]} Rb8 {[%emt 0:00:47]} 14. e4 {[%emt 0:01:38]} Re8 {[%emt 0:04:40]} 15. Bd3 {[%emt 0:08:03]} g5 {[%emt 0:11:40]} 16. Bg3 {[%emt 0:00:07]} Nh5 {[%emt 0:00:07]} 17. Ne5 $16 {[%emt 0:09:40]} Bxe5 {[%emt 0:07:49]} 18. Qxh5 {[%emt 0:00:52]} Qf6 {[%emt 0:00:12]} 19. Ne2 {[%emt 0:15:24]} Qg6 {[%emt 0:15:57]} 20. Qxg6+ {[%emt 0:04:01]} fxg6 {[%emt 0:01:46]} 21. Bxe5 {[%emt 0:04:39]} Rxe5 {[%emt 0:01:31]} 22. f4 {[%emt 0:01:01]} gxf4 {[%emt 0:03:36]} 23. Rxf4 {[%emt 0:00:15]} Ba6 {[%emt 0:04:53]} 24. Bxa6 {[%emt 0:01:25]} Nxa6 {[%emt 0:00:03]} 25. Rf6 {[%emt 0:00:20]} Rf8 {[%emt 0:05:00]} 26. Raf1 {[%emt 0:04:29]} Rxf6 {[%emt 0:01:04]} 27. Rxf6 {[%emt 0:00:05]} Kg7 {[%emt 0:04:49]} 28. Rxd6 {[%emt 0:00:15]} Rxe4 {[%emt 0:00:05]} 29. Nc3 {[%emt 0:01:51]} Re7 {[%emt 0:03:25]} 30. a5 {[%emt 0:10:17]} Rb7 {[%emt 0:09:03]} 31. axb6 {[%emt 0:01:12]} Rxb6 {[%emt 0:03:49]} 32. Rd7+ {[%emt 0:00:38]} Kf6 {[%emt 0:00:06]} 33. Rxa7 {[%emt 0:00:22]} Nb4 {[%emt 0:00:12]} 34. d6 {[%emt 0:15:53]} Ke5 {[%emt 0:00:40]} 35. d7 {[%emt 0:01:21]} Rd6 {[%emt 0:00:03]} 36. Rc7 {[%emt 0:02:53]} Nd3 {[%emt 0:03:54]} 37. Na4 {[%emt 0:01:22]} Kd4 {[%emt 0:01:58]} 38. Nc3 {[%emt 0:04:14]} Ke5 {[%emt 0:00:14]} 39. Nb5 {[%emt 0:03:41]} Rd5 {[%emt 0:00:05]} 40. Nc3 {[%emt 0:00:00]} Rd6 {[%emt 0:00:41]} 41. Nb5 Rd5 42. Rb7 1/2-1/2

[Event "POL-chT 2 Liga 2019"]
[Site "Poronin"]
[Date "2019.09.15"]
[Round "9.51"]
[White "Zurkowski, Andrzej"]
[Black "Maka, Marcin"]
[Result "0-1"]
[WhiteElo "2029"]
[BlackElo "2108"]
[Annotator "NA"]
[PlyCount "85"]
[EventDate "2019.09.07"]
[EventType "team-tourn"]
[EventCountry "POL"]
[SourceTitle "playchess.com"]
[Source "ChessBase"]
[SourceQuality "1"]
[TimeControl "40/5400+30:1800+30"]

1. d4 {[%emt 0:00:00]} d5 {[%emt 0:00:00]} 2. Nf3 {[%emt 0:00:23]} Nf6 {[%emt 0:00:00]} 3. g3 {[%emt 0:00:51]} e6 {[%emt 0:00:16]} 4. Bg2 {[%emt 0:00:10]} Nbd7 {[%emt 0:01:15]} 5. O-O {[%emt 0:00:36]} Be7 {[%emt 0:02:22]} 6. b3 {[%emt 0:01:26]} b6 {[%emt 0:00:32]} 7. Bb2 {[%emt 0:00:16]} O-O {[%emt 0:00:41]} 8. h3 {[%emt 0:00:55]} Ba6 {[%emt 0:41:43]} 9. Nbd2 {[%emt 0:06:50]} Rc8 {[%emt 0:00:09]} 10. c4 {[%emt 0:07:42]} c5 {[%emt 0:03:17]} 11. cxd5 {[%emt 0:02:31]} Nxd5 {[%emt 0:00:33]} 12. Re1 {[%emt 0:01:38]} cxd4 {[%emt 0:01:44]} 13. Nxd4 {[%emt 0:01:07]} Bb4 {[%emt 0:09:09]} 14. Bxd5 {[%emt 0:15:12]} exd5 {[%emt 0:00:03]} 15. a3 {[%emt 0:01:42]} Be7 {[%emt 0:07:21]} 16. b4 {[%emt 0:05:07]} Bf6 {[%emt 0:01:21]} 17. Qa4 {[%emt 0:06:03]} Bc4 {[%emt 0:00:42]} 18. N2f3 {[%emt 0:06:51]} b5 {[%emt 0:06:53]} 19. Qd1 {[%emt 0:00:52]} Nb6 {[%emt 0:01:27]} 20. Rc1 {[%emt 0:04:48]} Na4 {[%emt 0:06:21]} 21. Qd2 {[%emt 0:03:02]} a5 {[%emt 0:00:59]} 22. bxa5 {[%emt 0:03:07]} Nxb2 {[%emt 0:00:07]} 23. Qxb2 {[%emt 0:00:04]} Qxa5 {[%emt 0:00:05]} 24. Rc3 {[%emt 0:02:52]} Rfe8 {[%emt 0:04:13]} 25. Qd2 {[%emt 0:02:21]} Ra8 {[%emt 0:03:54]} 26. e3 {[%emt 0:06:27]} Qb6 {[%emt 0:00:43]} 27. Rb1 {[%emt 0:00:26]} Qc5 {[%emt 0:00:40]} 28. Rxb5 {[%emt 0:02:10]} Qd6 {[%emt 0:01:46]} 29. Rb4 {[%emt 0:01:37]} Qd7 {[%emt 0:01:05]} 30. Kh2 {[%emt 0:01:36]} Be7 {[%emt 0:00:16]} 31. Rb1 {[%emt 0:00:59]} Bxa3 {[%emt 0:01:21]} 32. Nc2 {[%emt 0:02:15]} Bd6 {[%emt 0:00:43]} 33. Ncd4 {[%emt 0:01:05]} Ra2 {[%emt 0:00:33]} 34. Rc2 {[%emt 0:00:55]} Rea8 {[%emt 0:01:30]} 35. Rxa2 {[%emt 0:07:05]} Rxa2 {[%emt 0:00:02]} 36. Nc2 {[%emt 0:00:00]} h5 {[%emt 0:01:52]} 37. Ra1 {[%emt 0:03:46]} Rb2 {[%emt 0:00:57]} 38. Qc1 {[%emt 0:01:42]} Qb7 {[%emt 0:00:55]} 39. h4 {[%emt 0:00:56]} Bd3 {[%emt 0:00:23]} 40. Nfe1 {[%emt 0:00:00]} Be4 {[%emt 0:00:00]} 41. Qd1 {[%emt 0:11:11]} Qc8 {[%emt 0:06:28]} 42. Rc1 {[%emt 0:01:27]} Qf5 {[%emt 0:00:41]} 43. Qe2 {[%emt 0:06:08]} 0-1

[Event "POL-chT 2 Liga 2019"]
[Site "Poronin"]
[Date "2019.09.15"]
[Round "9.52"]
[White "Panas, Pawel"]
[Black "Smusz, Kamil"]
[Result "1/2-1/2"]
[ECO "D02"]
[WhiteElo "2165"]
[BlackElo "1906"]
[Annotator "NA"]
[PlyCount "55"]
[EventDate "2019.09.07"]
[EventType "team-tourn"]
[EventCountry "POL"]
[SourceTitle "playchess.com"]
[Source "ChessBase"]
[SourceQuality "1"]
[TimeControl "40/5400+30:1800+30"]

1. d4 {[%emt 0:00:00]} d5 {[%emt 0:00:00]} 2. Nf3 {[%emt 0:00:09]} Bf5 {[%emt 0:01:04]} 3. c4 {[%emt 0:01:42]} e6 {[%emt 0:00:30]} 4. Nc3 {[%emt 0:01:41]} c6 {[%emt 0:00:54]} 5. Qb3 {[%emt 0:01:43]} Qb6 {[%emt 0:06:53]} 6. Qa4 {[%emt 0:06:57]} Nd7 {[%emt 0:02:16]} 7. g3 {[%emt 0:02:13]} Ngf6 {[%emt 0:02:50]} 8. Bg2 {[%emt 0:02:11]} Qb4 {[%emt 0:07:06]} 9. cxd5 {[%emt 0:13:05]} Nxd5 {[%emt 0:08:29]} 10. Qxb4 {[%emt 0:03:02]} Nxb4 {[%emt 0:03:54]} 11. O-O {[%emt 0:02:20]} Nc2 {[%emt 0:04:31]} 12. Rb1 {[%emt 0:04:32]} Nf6 {[%emt 0:07:18]} 13. Bg5 {[%emt 0:08:06]} Ne4 {[%emt 0:18:19]} 14. Nxe4 {[%emt 0:06:41]} Bxe4 {[%emt 0:00:03]} 15. Rbd1 {[%emt 0:04:25]} Nb4 {[%emt 0:01:04]} 16. a3 {[%emt 0:01:08]} Nd5 {[%emt 0:00:44]} 17. Ne1 {[%emt 0:02:33]} Bxg2 {[%emt 0:00:25]} 18. Kxg2 {[%emt 0:01:04]} Be7 {[%emt 0:03:21]} 19. Bxe7 {[%emt 0:03:11]} Kxe7 {[%emt 0:00:18]} 20. Nd3 {[%emt 0:01:53]} Rac8 {[%emt 0:01:06]} 21. Rc1 {[%emt 0:01:19]} Rhd8 {[%emt 0:03:25]} 22. e3 {[%emt 0:02:33]} Nb6 {[%emt 0:02:53]} 23. Kf3 {[%emt 0:05:22]} Rd5 {[%emt 0:02:06]} 24. h4 {[%emt 0:03:39]} Nd7 {[%emt 0:01:20]} 25. Rfd1 {[%emt 0:10:32]} Rd8 {[%emt 0:05:12]} 26. Ke2 {[%emt 0:01:25]} a5 {[%emt 0:04:04]} 27. f4 {[%emt 0:02:34]} f6 {[%emt 0:01:27]} 28. b4 {[%emt 0:02:50]} 1/2-1/2

[Event "POL-chT 2 Liga 2019"]
[Site "Poronin"]
[Date "2019.09.15"]
[Round "9.53"]
[White "Mikula, Michal"]
[Black "Fraczek, Dariusz"]
[Result "1/2-1/2"]
[ECO "C00"]
[WhiteElo "1830"]
[BlackElo "2033"]
[Annotator "NA"]
[PlyCount "58"]
[EventDate "2019.09.07"]
[EventType "team-tourn"]
[EventCountry "POL"]
[SourceTitle "playchess.com"]
[Source "ChessBase"]
[SourceQuality "1"]
[TimeControl "40/5400+30:1800+30"]

1. e4 {[%emt 0:00:00]} e6 {[%emt 0:00:00]} 2. Nf3 {[%emt 0:00:00]} d5 {[%emt 0:00:00]} 3. e5 {[%emt 0:00:35]} c5 {[%emt 0:00:05]} 4. b4 {[%emt 0:00:45]} cxb4 {[%emt 0:02:58]} 5. a3 {[%emt 0:01:30]} Nc6 {[%emt 0:00:31]} 6. axb4 {[%emt 0:03:41]} Bxb4 {[%emt 0:02:17]} 7. c3 {[%emt 0:04:00]} Be7 {[%emt 0:20:00]} 8. d4 {[%emt 0:06:18]} Bd7 {[%emt 0:00:23]} 9. Bd3 {[%emt 0:06:13]} Rc8 {[%emt 0:00:37]} 10. O-O {[%emt 0:06:49]} a6 {[%emt 0:03:23]} 11. Ne1 {[%emt 0:13:58]} f5 {[%emt 0:11:14]} 12. g4 {[%emt 0:05:57]} Na5 {[%emt 0:09:16]} 13. gxf5 {[%emt 0:02:40]} exf5 {[%emt 0:00:03]} 14. Ng2 {[%emt 0:01:45]} g6 {[%emt 0:10:55]} 15. Nf4 {[%emt 0:03:12]} Bg5 {[%emt 0:08:34]} 16. e6 {[%emt 0:05:34]} Bc6 {[%emt 0:00:45]} 17. Bxf5 {[%emt 0:03:49]} Ne7 {[%emt 0:03:22]} 18. Bc2 {[%emt 0:02:16]} O-O {[%emt 0:04:19]} 19. Qg4 {[%emt 0:01:54]} Bxf4 {[%emt 0:04:27]} 20. Bxf4 {[%emt 0:00:11]} Nc4 {[%emt 0:00:54]} 21. Bh6 {[%emt 0:03:32]} Rf6 {[%emt 0:04:24]} 22. Bg5 {[%emt 0:05:25]} Qf8 {[%emt 0:01:59]} 23. Re1 {[%emt 0:09:55]} Re8 {[%emt 0:01:38]} 24. Bxf6 {[%emt 0:04:50]} Qxf6 {[%emt 0:00:03]} 25. Na3 {[%emt 0:02:04]} Rf8 {[%emt 0:02:40]} 26. Qg3 {[%emt 0:02:39]} Nd2 {[%emt 0:00:30]} 27. Re3 {[%emt 0:02:07]} Nf3+ {[%emt 0:00:28]} 28. Kg2 {[%emt 0:00:30]} Nh4+ {[%emt 0:00:16]} 29. Kg1 {[%emt 0:00:11]} Nef5 1/2-1/2

[Event "POL-chT 2 Liga 2019"]
[Site "Poronin"]
[Date "2019.09.15"]
[Round "9.54"]
[White "Fraczek, Weronika"]
[Black "Mirowska, Oliwia"]
[Result "1/2-1/2"]
[ECO "B22"]
[WhiteElo "1875"]
[BlackElo "1900"]
[Annotator "NA"]
[PlyCount "34"]
[EventDate "2019.09.07"]
[EventType "team-tourn"]
[EventCountry "POL"]
[SourceTitle "playchess.com"]
[Source "ChessBase"]
[SourceQuality "1"]
[TimeControl "40/5400+30:1800+30"]

1. e4 {[%emt 0:00:00]} c5 {[%emt 0:00:00]} 2. c3 {[%emt 0:00:00]} g6 {[%emt 0:01:24]} 3. d4 {[%emt 0:00:07]} cxd4 {[%emt 0:00:18]} 4. cxd4 {[%emt 0:00:05]} Bg7 {[%emt 0:00:11]} 5. Nc3 {[%emt 0:01:02]} d6 {[%emt 0:00:13]} 6. Bc4 {[%emt 0:08:18]} Nf6 {[%emt 0:02:56]} 7. Nf3 {[%emt 0:01:48]} O-O {[%emt 0:01:26]} 8. Qe2 {[%emt 0:04:01]} Nc6 {[%emt 0:18:47]} 9. d5 {[%emt 0:06:02]} Ne5 {[%emt 0:02:28]} 10. Nxe5 {[%emt 0:02:31]} dxe5 {[%emt 0:00:12]} 11. O-O {[%emt 0:00:53]} a6 {[%emt 0:00:36]} 12. a4 {[%emt 0:00:57]} Bd7 {[%emt 0:01:03]} 13. a5 {[%emt 0:02:39]} Ne8 {[%emt 0:03:58]} 14. Be3 {[%emt 0:04:30]} Nd6 {[%emt 0:08:48]} 15. Bb6 {[%emt 0:05:56]} Qe8 {[%emt 0:06:20]} 16. Bd3 {[%emt 0:09:40]} Rc8 {[%emt 0:02:50]} 17. Rac1 {[%emt 0:14:03]} e6 {[%emt 0:04:54]} 1/2-1/2